{"text_format":"1","workbook":"xlsx","n_sheets":2,"sheets":["Eingabe Lohnabrechnung","Lohnabrechnungen_Vorlage"],"not_rendered":{"charts":0,"images":0,"macros":1,"external_links":0,"defined_names":7,"comments":0,"pivot_tables":0},"unopened":[],"bounds":{"document_bytes":16777216,"sheet_cells":100000,"rows_first":2000,"rows_last":500,"rows_between":2000,"halvings":0,"cell_chars":16384,"cell_head_chars":4096},"cells_cut":0,"cells_raw":0,"read":"whole","date_system":"1900"}

{"sheet":"Eingabe Lohnabrechnung","index":0,"n_rows":13,"n_cols":24,"rows_kept":13,"cut":false,"hidden":false,"merged":[]}
[null,"LOHN- UND GEHALTSRECHNER",null,null,null,null,null,null,null,null,"ZEITRAUM ENDET:",41372,null,"FIRMENNAME:",null,"ADVENTURE WORKS"]
[]
[null,"ID","Name des Mitarbeiters","Reguläre Arbeitsstunden","Urlaubsstunden","Krankheitsstunden","Überstunden","Überstundensatz","Bruttozahlung","Steuern und Abzüge","Sonstige Steuern und Abzüge","Nettozahlung"," ","Stundenlohn","Steuerstatus","Staat.\nZulage","Gewerbesteuer","Einkommensteuer","Altersvorsorge","Krankenversicherung","Einbehaltene Steuern gesamt","Abzüge für Versicherungen","Sonstige reguläre Abzüge","Reguläre Abzüge gesamt"]
[null,1001,"Thorsten Scholl",50,5,1,null,null,{"$f":"SUM(Mitarbeiter[[#This Row],[Reguläre Arbeitsstunden]:[Krankheitsstunden]])*Mitarbeiter[[#This Row],[Stundenlohn]]+Mitarbeiter[[#This Row],[Überstunden]]*Mitarbeiter[[#This Row],[Überstundensatz]]","v":560},{"$f":"Mitarbeiter[[#This Row],[Bruttozahlung]]*Mitarbeiter[[#This Row],[Einbehaltene Steuern gesamt]]+ Mitarbeiter[[#This Row],[Reguläre Abzüge gesamt]]","v":273.08000000000004},20,{"$f":"Mitarbeiter[[#This Row],[Bruttozahlung]]-Mitarbeiter[[#This Row],[Steuern und Abzüge]]-Mitarbeiter[[#This Row],[Sonstige Steuern und Abzüge]]","v":266.91999999999996},null,10,1,4,2.3E-2,0.28000000000000003,6.3E-2,1.4500000000000001E-2,{"$f":"SUM(Mitarbeiter[[#This Row],[Gewerbesteuer]:[Krankenversicherung]])","v":0.38050000000000006},20,40,{"$f":"SUM(Mitarbeiter[[#This Row],[Abzüge für Versicherungen]:[Sonstige reguläre Abzüge]])","v":60}]
[null,1002,"David Probst",40,null,null,null,null,{"$f":"SUM(Mitarbeiter[[#This Row],[Reguläre Arbeitsstunden]:[Krankheitsstunden]])*Mitarbeiter[[#This Row],[Stundenlohn]]+Mitarbeiter[[#This Row],[Überstunden]]*Mitarbeiter[[#This Row],[Überstundensatz]]","v":320},{"$f":"Mitarbeiter[[#This Row],[Bruttozahlung]]*Mitarbeiter[[#This Row],[Einbehaltene Steuern gesamt]]+ Mitarbeiter[[#This Row],[Reguläre Abzüge gesamt]]","v":131.76000000000002},null,{"$f":"Mitarbeiter[[#This Row],[Bruttozahlung]]-Mitarbeiter[[#This Row],[Steuern und Abzüge]]-Mitarbeiter[[#This Row],[Sonstige Steuern und Abzüge]]","v":188.23999999999998},null,8,1,1,2.3E-2,0.28000000000000003,6.3E-2,1.4500000000000001E-2,{"$f":"SUM(Mitarbeiter[[#This Row],[Gewerbesteuer]:[Krankenversicherung]])","v":0.38050000000000006},0,10,{"$f":"SUM(Mitarbeiter[[#This Row],[Abzüge für Versicherungen]:[Sonstige reguläre Abzüge]])","v":10}]
[null,1003,"Anja Richter",35,3,null,null,null,{"$f":"SUM(Mitarbeiter[[#This Row],[Reguläre Arbeitsstunden]:[Krankheitsstunden]])*Mitarbeiter[[#This Row],[Stundenlohn]]+Mitarbeiter[[#This Row],[Überstunden]]*Mitarbeiter[[#This Row],[Überstundensatz]]","v":532},{"$f":"Mitarbeiter[[#This Row],[Bruttozahlung]]*Mitarbeiter[[#This Row],[Einbehaltene Steuern gesamt]]+ Mitarbeiter[[#This Row],[Reguläre Abzüge gesamt]]","v":240.42600000000004},null,{"$f":"Mitarbeiter[[#This Row],[Bruttozahlung]]-Mitarbeiter[[#This Row],[Steuern und Abzüge]]-Mitarbeiter[[#This Row],[Sonstige Steuern und Abzüge]]","v":291.57399999999996},null,14,1,3,2.3E-2,0.28000000000000003,6.3E-2,1.4500000000000001E-2,{"$f":"SUM(Mitarbeiter[[#This Row],[Gewerbesteuer]:[Krankenversicherung]])","v":0.38050000000000006},18,20,{"$f":"SUM(Mitarbeiter[[#This Row],[Abzüge für Versicherungen]:[Sonstige reguläre Abzüge]])","v":38}]
[null,1008,"Sebastian Mäurer",50,5,1,null,null,{"$f":"SUM(Mitarbeiter[[#This Row],[Reguläre Arbeitsstunden]:[Krankheitsstunden]])*Mitarbeiter[[#This Row],[Stundenlohn]]+Mitarbeiter[[#This Row],[Überstunden]]*Mitarbeiter[[#This Row],[Überstundensatz]]","v":1120},{"$f":"Mitarbeiter[[#This Row],[Bruttozahlung]]*Mitarbeiter[[#This Row],[Einbehaltene Steuern gesamt]]+ Mitarbeiter[[#This Row],[Reguläre Abzüge gesamt]]","v":441.16000000000008},null,{"$f":"Mitarbeiter[[#This Row],[Bruttozahlung]]-Mitarbeiter[[#This Row],[Steuern und Abzüge]]-Mitarbeiter[[#This Row],[Sonstige Steuern und Abzüge]]","v":678.83999999999992},null,20,1,0,2.3E-2,0.28000000000000003,6.3E-2,1.4500000000000001E-2,{"$f":"SUM(Mitarbeiter[[#This Row],[Gewerbesteuer]:[Krankenversicherung]])","v":0.38050000000000006},15,null,{"$f":"SUM(Mitarbeiter[[#This Row],[Abzüge für Versicherungen]:[Sonstige reguläre Abzüge]])","v":15}]
[null,1011,"Isabella Schumann",40,null,null,2,15,{"$f":"SUM(Mitarbeiter[[#This Row],[Reguläre Arbeitsstunden]:[Krankheitsstunden]])*Mitarbeiter[[#This Row],[Stundenlohn]]+Mitarbeiter[[#This Row],[Überstunden]]*Mitarbeiter[[#This Row],[Überstundensatz]]","v":430},{"$f":"Mitarbeiter[[#This Row],[Bruttozahlung]]*Mitarbeiter[[#This Row],[Einbehaltene Steuern gesamt]]+ Mitarbeiter[[#This Row],[Reguläre Abzüge gesamt]]","v":223.61500000000004},null,{"$f":"Mitarbeiter[[#This Row],[Bruttozahlung]]-Mitarbeiter[[#This Row],[Steuern und Abzüge]]-Mitarbeiter[[#This Row],[Sonstige Steuern und Abzüge]]","v":206.38499999999996},null,10,1,0,2.3E-2,0.28000000000000003,6.3E-2,1.4500000000000001E-2,{"$f":"SUM(Mitarbeiter[[#This Row],[Gewerbesteuer]:[Krankenversicherung]])","v":0.38050000000000006},20,40,{"$f":"SUM(Mitarbeiter[[#This Row],[Abzüge für Versicherungen]:[Sonstige reguläre Abzüge]])","v":60}]
[null,1012,"David Bergmann",40,5,1,null,null,{"$f":"SUM(Mitarbeiter[[#This Row],[Reguläre Arbeitsstunden]:[Krankheitsstunden]])*Mitarbeiter[[#This Row],[Stundenlohn]]+Mitarbeiter[[#This Row],[Überstunden]]*Mitarbeiter[[#This Row],[Überstundensatz]]","v":552},{"$f":"Mitarbeiter[[#This Row],[Bruttozahlung]]*Mitarbeiter[[#This Row],[Einbehaltene Steuern gesamt]]+ Mitarbeiter[[#This Row],[Reguläre Abzüge gesamt]]","v":270.03600000000006},null,{"$f":"Mitarbeiter[[#This Row],[Bruttozahlung]]-Mitarbeiter[[#This Row],[Steuern und Abzüge]]-Mitarbeiter[[#This Row],[Sonstige Steuern und Abzüge]]","v":281.96399999999994},null,12,1,4,2.3E-2,0.28000000000000003,6.3E-2,1.4500000000000001E-2,{"$f":"SUM(Mitarbeiter[[#This Row],[Gewerbesteuer]:[Krankenversicherung]])","v":0.38050000000000006},20,40,{"$f":"SUM(Mitarbeiter[[#This Row],[Abzüge für Versicherungen]:[Sonstige reguläre Abzüge]])","v":60}]
[null,1025,"Anne Weiler",36,null,2,1,18,{"$f":"SUM(Mitarbeiter[[#This Row],[Reguläre Arbeitsstunden]:[Krankheitsstunden]])*Mitarbeiter[[#This Row],[Stundenlohn]]+Mitarbeiter[[#This Row],[Überstunden]]*Mitarbeiter[[#This Row],[Überstundensatz]]","v":474},{"$f":"Mitarbeiter[[#This Row],[Bruttozahlung]]*Mitarbeiter[[#This Row],[Einbehaltene Steuern gesamt]]+ Mitarbeiter[[#This Row],[Reguläre Abzüge gesamt]]","v":225.35700000000003},25,{"$f":"Mitarbeiter[[#This Row],[Bruttozahlung]]-Mitarbeiter[[#This Row],[Steuern und Abzüge]]-Mitarbeiter[[#This Row],[Sonstige Steuern und Abzüge]]","v":223.64299999999997},null,12,1,2,2.3E-2,0.28000000000000003,6.3E-2,1.4500000000000001E-2,{"$f":"SUM(Mitarbeiter[[#This Row],[Gewerbesteuer]:[Krankenversicherung]])","v":0.38050000000000006},25,20,{"$f":"SUM(Mitarbeiter[[#This Row],[Abzüge für Versicherungen]:[Sonstige reguläre Abzüge]])","v":45}]
[null,1032,"Lukas Albrecht",40,5,1,null,null,{"$f":"SUM(Mitarbeiter[[#This Row],[Reguläre Arbeitsstunden]:[Krankheitsstunden]])*Mitarbeiter[[#This Row],[Stundenlohn]]+Mitarbeiter[[#This Row],[Überstunden]]*Mitarbeiter[[#This Row],[Überstundensatz]]","v":460},{"$f":"Mitarbeiter[[#This Row],[Bruttozahlung]]*Mitarbeiter[[#This Row],[Einbehaltene Steuern gesamt]]+ Mitarbeiter[[#This Row],[Reguläre Abzüge gesamt]]","v":175.03000000000003},50,{"$f":"Mitarbeiter[[#This Row],[Bruttozahlung]]-Mitarbeiter[[#This Row],[Steuern und Abzüge]]-Mitarbeiter[[#This Row],[Sonstige Steuern und Abzüge]]","v":234.96999999999997},null,10,1,3,2.3E-2,0.28000000000000003,6.3E-2,1.4500000000000001E-2,{"$f":"SUM(Mitarbeiter[[#This Row],[Gewerbesteuer]:[Krankenversicherung]])","v":0.38050000000000006},null,null,{"$f":"SUM(Mitarbeiter[[#This Row],[Abzüge für Versicherungen]:[Sonstige reguläre Abzüge]])","v":0}]
[null,1049,"David Ludwig",40,1,null,null,null,{"$f":"SUM(Mitarbeiter[[#This Row],[Reguläre Arbeitsstunden]:[Krankheitsstunden]])*Mitarbeiter[[#This Row],[Stundenlohn]]+Mitarbeiter[[#This Row],[Überstunden]]*Mitarbeiter[[#This Row],[Überstundensatz]]","v":615},{"$f":"Mitarbeiter[[#This Row],[Bruttozahlung]]*Mitarbeiter[[#This Row],[Einbehaltene Steuern gesamt]]+ Mitarbeiter[[#This Row],[Reguläre Abzüge gesamt]]","v":259.00750000000005},23,{"$f":"Mitarbeiter[[#This Row],[Bruttozahlung]]-Mitarbeiter[[#This Row],[Steuern und Abzüge]]-Mitarbeiter[[#This Row],[Sonstige Steuern und Abzüge]]","v":332.99249999999995},null,15,1,2,2.3E-2,0.28000000000000003,6.3E-2,1.4500000000000001E-2,{"$f":"SUM(Mitarbeiter[[#This Row],[Gewerbesteuer]:[Krankenversicherung]])","v":0.38050000000000006},25,null,{"$f":"SUM(Mitarbeiter[[#This Row],[Abzüge für Versicherungen]:[Sonstige reguläre Abzüge]])","v":25}]
[null,"Summen",{"$f":"SUBTOTAL(103,Mitarbeiter[Name des Mitarbeiters])","v":9},{"$f":"SUBTOTAL(109,Mitarbeiter[Reguläre Arbeitsstunden])","v":371},{"$f":"SUBTOTAL(109,Mitarbeiter[Urlaubsstunden])","v":24},{"$f":"SUBTOTAL(109,Mitarbeiter[Krankheitsstunden])","v":6},{"$f":"SUBTOTAL(109,Mitarbeiter[Überstunden])","v":3},null,{"$f":"SUBTOTAL(109,Mitarbeiter[Bruttozahlung])","v":5063},{"$f":"SUBTOTAL(109,Mitarbeiter[Steuern und Abzüge])","v":2239.4715000000001},{"$f":"SUBTOTAL(109,Mitarbeiter[Sonstige Steuern und Abzüge])","v":118},{"$f":"SUBTOTAL(109,Mitarbeiter[Nettozahlung])","v":2705.5284999999994},null,null,null,null,null,null,null,null,null,{"$f":"SUBTOTAL(109,Mitarbeiter[Abzüge für Versicherungen])","v":143},{"$f":"SUBTOTAL(109,Mitarbeiter[Sonstige reguläre Abzüge])","v":170},{"$f":"SUBTOTAL(109,Mitarbeiter[Reguläre Abzüge gesamt])","v":313}]

{"sheet":"Lohnabrechnungen_Vorlage","index":1,"n_rows":47,"n_cols":13,"rows_kept":47,"cut":false,"hidden":true,"merged":[[45,2,45,3],[32,2,32,3],[33,2,33,3],[20,2,20,3],[21,2,21,3],[2,3,2,4],[14,3,14,4],[26,3,26,4],[38,3,38,4],[44,2,44,3],[8,2,8,3],[9,2,9,3],[2,7,2,8],[14,7,14,8],[26,7,26,8],[38,7,38,8],[38,11,38,12],[26,11,26,12],[14,11,14,12],[2,11,2,12]]}
[]
[null,null,{"$f":"Firma","v":"ADVENTURE WORKS"}]
[null,null,"ZEITRAUM",{"$f":"ZeitraumEndet","v":41372},null,null,"NAME",{"$f":"IFERROR(INDEX(Mitarbeiter[Name des Mitarbeiters],Abrechnung),\"\")","v":"Thorsten Scholl"},null,null,"MITARBEITER-ID",{"$f":"IFERROR(INDEX(Mitarbeiter[ID],Abrechnung),\"\")","v":1001}]
[null,null,"Steuerstatus",null,{"$f":"IFERROR(INDEX(Mitarbeiter[Steuerstatus],Abrechnung),\"\")","v":1},null,"Staatliche Beihilfen (aus Riester)",null,{"$f":"IFERROR(INDEX(Mitarbeiter[Staat.\nZulage],Abrechnung),\"\")","v":4},null,"Arbeitsstunden",null,{"$f":"IFERROR(INDEX(Mitarbeiter[Reguläre Arbeitsstunden],Abrechnung),\"\")","v":50}]
[null,null,"Stundensatz",null,{"$f":"IFERROR(INDEX(Mitarbeiter[Stundenlohn],Abrechnung),\"\")","v":10},null,"Überstundensatz",null,{"$f":"IFERROR(INDEX(Mitarbeiter[Überstundensatz],Abrechnung),\"\")","v":0},null,"Krankheitsstunden",null,{"$f":"IFERROR(INDEX(Mitarbeiter[Krankheitsstunden],Abrechnung),\"\")","v":1}]
[null,null,"Altersvorsorge",null,{"$f":"IFERROR(INDEX(Mitarbeiter[Altersvorsorge],Abrechnung)  *  INDEX(Mitarbeiter[Bruttozahlung],Abrechnung),\"\")","v":35.28},null,"Einkommensteuer",null,{"$f":"IFERROR(INDEX(Mitarbeiter[Einkommensteuer],Abrechnung)  *  INDEX(Mitarbeiter[Bruttozahlung],Abrechnung),\"\")","v":156.80000000000001},null,"Urlaubsstunden",null,{"$f":"IFERROR(INDEX(Mitarbeiter[Urlaubsstunden],Abrechnung),\"\")","v":5}]
[null,null,"Krankenversicherung ",null,{"$f":"IFERROR(INDEX(Mitarbeiter[Krankenversicherung],Abrechnung)  *  INDEX(Mitarbeiter[Bruttozahlung],Abrechnung),\"\")","v":8.120000000000001},null,"Gewerbesteuer ",null,{"$f":"IFERROR(INDEX(Mitarbeiter[Gewerbesteuer],Abrechnung)  *  INDEX(Mitarbeiter[Bruttozahlung],Abrechnung),\"\")","v":12.879999999999999},null,"Überstunden",null,{"$f":"IFERROR(INDEX(Mitarbeiter[Überstunden],Abrechnung),\"\")","v":0}]
[null,null,"Abzüge für Versicherungen",null,{"$f":"IFERROR(INDEX(Mitarbeiter[Abzüge für Versicherungen],Abrechnung),\"\")","v":20},null,"Sonstige reguläre Abzüge",null,{"$f":"IFERROR(INDEX(Mitarbeiter[Sonstige reguläre Abzüge],Abrechnung),\"\")","v":40},null,"Bruttozahlung",null,{"$f":"IFERROR(INDEX(Mitarbeiter[Bruttozahlung],Abrechnung),\"\")","v":560}]
[null,null,"Gesamte Steuern und",null,{"$f":"IFERROR(INDEX(Mitarbeiter[Steuern und Abzüge],Abrechnung),\"\")","v":273.08000000000004},null,"Sonstige Abzüge",null,{"$f":"IFERROR(INDEX(Mitarbeiter[Sonstige Steuern und Abzüge],Abrechnung),\"\")","v":20},null,"Steuern und Abzüge gesamt ",null,{"$f":"IFERROR(INDEX(Mitarbeiter[Steuern und Abzüge],Abrechnung)  +  INDEX(Mitarbeiter[Sonstige Steuern und Abzüge],Abrechnung),\"\")","v":293.08000000000004}]
[null,null,"reguläre Abzüge"]
[null,null,null,null,null,null,null,null,null,null,"NETTOZAHLUNG",null,{"$f":"IFERROR(INDEX(Mitarbeiter[Nettozahlung],Abrechnung),\"\")","v":266.91999999999996}]
[]
[]
[null,null,{"$f":"Firma","v":"ADVENTURE WORKS"}]
[null,null,"ZEITRAUM",{"$f":"ZeitraumEndet","v":41372},null,null,"NAME",{"$f":"IFERROR(INDEX(Mitarbeiter[Name des Mitarbeiters],Abrechnung),\"\")","v":"David Probst"},null,null,"MITARBEITER-ID",{"$f":"IFERROR(INDEX(Mitarbeiter[ID],Abrechnung),\"\")","v":1002}]
[null,null,"Steuerstatus",null,{"$f":"IFERROR(INDEX(Mitarbeiter[Steuerstatus],Abrechnung),\"\")","v":1},null,"Staatliche Beihilfen (aus Riester)",null,{"$f":"IFERROR(INDEX(Mitarbeiter[Staat.\nZulage],Abrechnung),\"\")","v":1},null,"Arbeitsstunden",null,{"$f":"IFERROR(INDEX(Mitarbeiter[Reguläre Arbeitsstunden],Abrechnung),\"\")","v":40}]
[null,null,"Stundensatz",null,{"$f":"IFERROR(INDEX(Mitarbeiter[Stundenlohn],Abrechnung),\"\")","v":8},null,"Überstundensatz",null,{"$f":"IFERROR(INDEX(Mitarbeiter[Überstundensatz],Abrechnung),\"\")","v":0},null,"Krankheitsstunden",null,{"$f":"IFERROR(INDEX(Mitarbeiter[Krankheitsstunden],Abrechnung),\"\")","v":0}]
[null,null,"Altersvorsorge",null,{"$f":"IFERROR(INDEX(Mitarbeiter[Altersvorsorge],Abrechnung)  *  INDEX(Mitarbeiter[Bruttozahlung],Abrechnung),\"\")","v":20.16},null,"Einkommensteuer",null,{"$f":"IFERROR(INDEX(Mitarbeiter[Einkommensteuer],Abrechnung)  *  INDEX(Mitarbeiter[Bruttozahlung],Abrechnung),\"\")","v":89.600000000000009},null,"Urlaubsstunden",null,{"$f":"IFERROR(INDEX(Mitarbeiter[Urlaubsstunden],Abrechnung),\"\")","v":0}]
[null,null,"Krankenversicherung ",null,{"$f":"IFERROR(INDEX(Mitarbeiter[Krankenversicherung],Abrechnung)  *  INDEX(Mitarbeiter[Bruttozahlung],Abrechnung),\"\")","v":4.6400000000000006},null,"Gewerbesteuer ",null,{"$f":"IFERROR(INDEX(Mitarbeiter[Gewerbesteuer],Abrechnung)  *  INDEX(Mitarbeiter[Bruttozahlung],Abrechnung),\"\")","v":7.3599999999999994},null,"Überstunden",null,{"$f":"IFERROR(INDEX(Mitarbeiter[Überstunden],Abrechnung),\"\")","v":0}]
[null,null,"Abzüge für Versicherungen",null,{"$f":"IFERROR(INDEX(Mitarbeiter[Abzüge für Versicherungen],Abrechnung),\"\")","v":0},null,"Sonstige reguläre Abzüge",null,{"$f":"IFERROR(INDEX(Mitarbeiter[Sonstige reguläre Abzüge],Abrechnung),\"\")","v":10},null,"Bruttozahlung",null,{"$f":"IFERROR(INDEX(Mitarbeiter[Bruttozahlung],Abrechnung),\"\")","v":320}]
[null,null,"Gesamte Steuern und",null,{"$f":"IFERROR(INDEX(Mitarbeiter[Steuern und Abzüge],Abrechnung),\"\")","v":131.76000000000002},null,"Sonstige Abzüge",null,{"$f":"IFERROR(INDEX(Mitarbeiter[Sonstige Steuern und Abzüge],Abrechnung),\"\")","v":0},null,"Steuern und Abzüge gesamt ",null,{"$f":"IFERROR(INDEX(Mitarbeiter[Steuern und Abzüge],Abrechnung)  +  INDEX(Mitarbeiter[Sonstige Steuern und Abzüge],Abrechnung),\"\")","v":131.76000000000002}]
[null,null,"reguläre Abzüge"]
[null,null,null,null,null,null,null,null,null,null,"NETTOZAHLUNG",null,{"$f":"IFERROR(INDEX(Mitarbeiter[Nettozahlung],Abrechnung),\"\")","v":188.23999999999998}]
[]
[]
[null,null,{"$f":"Firma","v":"ADVENTURE WORKS"}]
[null,null,"ZEITRAUM",{"$f":"ZeitraumEndet","v":41372},null,null,"NAME",{"$f":"IFERROR(INDEX(Mitarbeiter[Name des Mitarbeiters],Abrechnung),\"\")","v":"Anja Richter"},null,null,"MITARBEITER-ID",{"$f":"IFERROR(INDEX(Mitarbeiter[ID],Abrechnung),\"\")","v":1003}]
[null,null,"Steuerstatus",null,{"$f":"IFERROR(INDEX(Mitarbeiter[Steuerstatus],Abrechnung),\"\")","v":1},null,"Staatliche Beihilfen (aus Riester)",null,{"$f":"IFERROR(INDEX(Mitarbeiter[Staat.\nZulage],Abrechnung),\"\")","v":3},null,"Arbeitsstunden",null,{"$f":"IFERROR(INDEX(Mitarbeiter[Reguläre Arbeitsstunden],Abrechnung),\"\")","v":35}]
[null,null,"Stundensatz",null,{"$f":"IFERROR(INDEX(Mitarbeiter[Stundenlohn],Abrechnung),\"\")","v":14},null,"Überstundensatz",null,{"$f":"IFERROR(INDEX(Mitarbeiter[Überstundensatz],Abrechnung),\"\")","v":0},null,"Krankheitsstunden",null,{"$f":"IFERROR(INDEX(Mitarbeiter[Krankheitsstunden],Abrechnung),\"\")","v":0}]
[null,null,"Altersvorsorge",null,{"$f":"IFERROR(INDEX(Mitarbeiter[Altersvorsorge],Abrechnung)  *  INDEX(Mitarbeiter[Bruttozahlung],Abrechnung),\"\")","v":33.515999999999998},null,"Einkommensteuer",null,{"$f":"IFERROR(INDEX(Mitarbeiter[Einkommensteuer],Abrechnung)  *  INDEX(Mitarbeiter[Bruttozahlung],Abrechnung),\"\")","v":148.96},null,"Urlaubsstunden",null,{"$f":"IFERROR(INDEX(Mitarbeiter[Urlaubsstunden],Abrechnung),\"\")","v":3}]
[null,null,"Krankenversicherung ",null,{"$f":"IFERROR(INDEX(Mitarbeiter[Krankenversicherung],Abrechnung)  *  INDEX(Mitarbeiter[Bruttozahlung],Abrechnung),\"\")","v":7.7140000000000004},null,"Gewerbesteuer ",null,{"$f":"IFERROR(INDEX(Mitarbeiter[Gewerbesteuer],Abrechnung)  *  INDEX(Mitarbeiter[Bruttozahlung],Abrechnung),\"\")","v":12.236000000000001},null,"Überstunden",null,{"$f":"IFERROR(INDEX(Mitarbeiter[Überstunden],Abrechnung),\"\")","v":0}]
[null,null,"Abzüge für Versicherungen",null,{"$f":"IFERROR(INDEX(Mitarbeiter[Abzüge für Versicherungen],Abrechnung),\"\")","v":18},null,"Sonstige reguläre Abzüge",null,{"$f":"IFERROR(INDEX(Mitarbeiter[Sonstige reguläre Abzüge],Abrechnung),\"\")","v":20},null,"Bruttozahlung",null,{"$f":"IFERROR(INDEX(Mitarbeiter[Bruttozahlung],Abrechnung),\"\")","v":532}]
[null,null,"Gesamte Steuern und",null,{"$f":"IFERROR(INDEX(Mitarbeiter[Steuern und Abzüge],Abrechnung),\"\")","v":240.42600000000004},null,"Sonstige Abzüge",null,{"$f":"IFERROR(INDEX(Mitarbeiter[Sonstige Steuern und Abzüge],Abrechnung),\"\")","v":0},null,"Steuern und Abzüge gesamt ",null,{"$f":"IFERROR(INDEX(Mitarbeiter[Steuern und Abzüge],Abrechnung)  +  INDEX(Mitarbeiter[Sonstige Steuern und Abzüge],Abrechnung),\"\")","v":240.42600000000004}]
[null,null,"reguläre Abzüge"]
[null,null,null,null,null,null,null,null,null,null,"NETTOZAHLUNG",null,{"$f":"IFERROR(INDEX(Mitarbeiter[Nettozahlung],Abrechnung),\"\")","v":291.57399999999996}]
[]
[]
[null,null,{"$f":"Firma","v":"ADVENTURE WORKS"}]
[null,null,"ZEITRAUM",{"$f":"ZeitraumEndet","v":41372},null,null,"NAME",{"$f":"IFERROR(INDEX(Mitarbeiter[Name des Mitarbeiters],Abrechnung),\"\")","v":"Sebastian Mäurer"},null,null,"MITARBEITER-ID",{"$f":"IFERROR(INDEX(Mitarbeiter[ID],Abrechnung),\"\")","v":1008}]
[null,null,"Steuerstatus",null,{"$f":"IFERROR(INDEX(Mitarbeiter[Steuerstatus],Abrechnung),\"\")","v":1},null,"Staatliche Beihilfen (aus Riester)",null,{"$f":"IFERROR(INDEX(Mitarbeiter[Staat.\nZulage],Abrechnung),\"\")","v":0},null,"Arbeitsstunden",null,{"$f":"IFERROR(INDEX(Mitarbeiter[Reguläre Arbeitsstunden],Abrechnung),\"\")","v":50}]
[null,null,"Stundensatz",null,{"$f":"IFERROR(INDEX(Mitarbeiter[Stundenlohn],Abrechnung),\"\")","v":20},null,"Überstundensatz",null,{"$f":"IFERROR(INDEX(Mitarbeiter[Überstundensatz],Abrechnung),\"\")","v":0},null,"Krankheitsstunden",null,{"$f":"IFERROR(INDEX(Mitarbeiter[Krankheitsstunden],Abrechnung),\"\")","v":1}]
[null,null,"Altersvorsorge",null,{"$f":"IFERROR(INDEX(Mitarbeiter[Altersvorsorge],Abrechnung)  *  INDEX(Mitarbeiter[Bruttozahlung],Abrechnung),\"\")","v":70.56},null,"Einkommensteuer",null,{"$f":"IFERROR(INDEX(Mitarbeiter[Einkommensteuer],Abrechnung)  *  INDEX(Mitarbeiter[Bruttozahlung],Abrechnung),\"\")","v":313.60000000000002},null,"Urlaubsstunden",null,{"$f":"IFERROR(INDEX(Mitarbeiter[Urlaubsstunden],Abrechnung),\"\")","v":5}]
[null,null,"Krankenversicherung ",null,{"$f":"IFERROR(INDEX(Mitarbeiter[Krankenversicherung],Abrechnung)  *  INDEX(Mitarbeiter[Bruttozahlung],Abrechnung),\"\")","v":16.240000000000002},null,"Gewerbesteuer ",null,{"$f":"IFERROR(INDEX(Mitarbeiter[Gewerbesteuer],Abrechnung)  *  INDEX(Mitarbeiter[Bruttozahlung],Abrechnung),\"\")","v":25.759999999999998},null,"Überstunden",null,{"$f":"IFERROR(INDEX(Mitarbeiter[Überstunden],Abrechnung),\"\")","v":0}]
[null,null,"Abzüge für Versicherungen",null,{"$f":"IFERROR(INDEX(Mitarbeiter[Abzüge für Versicherungen],Abrechnung),\"\")","v":15},null,"Sonstige reguläre Abzüge",null,{"$f":"IFERROR(INDEX(Mitarbeiter[Sonstige reguläre Abzüge],Abrechnung),\"\")","v":0},null,"Bruttozahlung",null,{"$f":"IFERROR(INDEX(Mitarbeiter[Bruttozahlung],Abrechnung),\"\")","v":1120}]
[null,null,"Gesamte Steuern und",null,{"$f":"IFERROR(INDEX(Mitarbeiter[Steuern und Abzüge],Abrechnung),\"\")","v":441.16000000000008},null,"Sonstige Abzüge",null,{"$f":"IFERROR(INDEX(Mitarbeiter[Sonstige Steuern und Abzüge],Abrechnung),\"\")","v":0},null,"Steuern und Abzüge gesamt ",null,{"$f":"IFERROR(INDEX(Mitarbeiter[Steuern und Abzüge],Abrechnung)  +  INDEX(Mitarbeiter[Sonstige Steuern und Abzüge],Abrechnung),\"\")","v":441.16000000000008}]
[null,null,"reguläre Abzüge"]
[null,null,null,null,null,null,null,null,null,null,"NETTOZAHLUNG",null,{"$f":"IFERROR(INDEX(Mitarbeiter[Nettozahlung],Abrechnung),\"\")","v":678.83999999999992}]